fUSD/lending_fUSD_20250404
["ID","MTS","AMOUNT","RATE_DAILY","PERIOD"]
[357139180,1743784252223,-150.0,0.00050266,7]
[357139181,1743784252232,-150.0,0.00050272,7]
[357139182,1743784252242,-150.0,0.00050273,7]
[357139183,1743784252252,-150.0,0.00050274,7]
[357139184,1743784252265,-150.0,0.00050275,7]
[357139185,1743784252275,-150.0,0.00050277,7]
[357139186,1743784252285,-150.0,0.00050278,7]
[357139187,1743784252295,-150.0,0.00050285,7]
[357139188,1743784252305,-150.0,0.00050288,7]
[357139189,1743784252314,-150.0,0.00050288,7]
[357139190,1743784252324,-150.0,0.00050288,7]
[357139191,1743784252335,-150.0,0.00050292,7]
[357139192,1743784252345,-150.0,0.00050293,7]
[357139193,1743784252356,-150.0,0.00050293,7]
[357139194,1743784252366,-150.0,0.00050298,7]
[357139195,1743784252376,-150.0,0.00050303,7]
[357139196,1743784252385,-150.0,0.00050305,7]
[357139197,1743784252395,-150.0,0.00050306,7]
[357139198,1743784252405,-150.0,0.00050307,7]
[357139199,1743784252416,-150.0,0.00050316,7]
[357139200,1743784252426,-150.0,0.00050319,7]
[357139201,1743784252436,-150.0,0.00050319,7]
[357139202,1743784252446,-150.0,0.00050319,7]
[357139203,1743784252456,-150.0,0.00050324,7]
[357139204,1743784252466,-150.0,0.00050329,7]
[357139205,1743784252476,-150.0,0.00050342,7]
[357139206,1743784252485,-150.0,0.00050343,7]
[357139207,1743784252495,-150.0,0.00050344,7]
[357139208,1743784252504,-150.0,0.00050345,7]
[357139209,1743784252514,-150.0,0.00050347,7]
[357139210,1743784252524,-150.0,0.00050351,7]
[357139211,1743784252533,-150.0,0.00050354,7]
[357139212,1743784252543,-150.0,0.00050359,7]
[357139213,1743784252553,-150.0,0.00050371,7]
[357139214,1743784252562,-150.0,0.00050375,7]
[357139215,1743784252572,-150.0,0.00050379,7]
[357139216,1743784252581,-150.0,0.0005038,7]
[357139217,1743784252591,-150.0,0.00050385,7]
[357139218,1743784252600,-150.0,0.00050385,7]
[357139219,1743784252611,-150.0,0.00050395,7]
[357139220,1743784252620,-150.0,0.00050399,7]
[357139221,1743784252630,-150.0,0.00050408,7]
[357139222,1743784252639,-150.0,0.00050408,7]
[357139223,1743784252649,-150.0,0.00050411,7]
[357139224,1743784252658,-150.0,0.00050413,7]
[357139225,1743784252667,-150.0,0.00050417,7]
[357139226,1743784252677,-150.0,0.00050428,7]
[357139227,1743784252687,-150.0,0.00050432,7]
[357139228,1743784252696,-150.0,0.00050433,7]
[357139229,1743784252707,-150.0,0.00050438,7]
[357139230,1743784252717,-150.0,0.00050443,7]
[357139231,1743784252731,-150.0,0.00050444,7]
[357139232,1743784252750,-150.0,0.00050445,7]
[357139233,1743784252764,-150.0,0.00050446,7]
[357139234,1743784252780,-150.0,0.00050447,7]
[357139235,1743784252797,-150.0,0.00050451,7]
[357139236,1743784252815,-150.0,0.00050458,7]
[357139237,1743784252831,-500.0,0.0005046,120]
[357139238,1743784252844,-500.0,0.0005046,120]
[357139239,1743784252866,-500.0,0.0005046,120]
[357139240,1743784252880,-150.0,0.00050461,7]
[357139241,1743784252896,-150.0,0.00050462,7]
[357139242,1743784252911,-150.0,0.00050467,7]
[357139243,1743784252928,-150.0,0.0005047,7]
[357139244,1743784252942,-150.0,0.00050474,7]
[357139245,1743784252956,-150.0,0.00050475,7]
[357139246,1743784252970,-150.0,0.00050479,7]
[357139247,1743784252986,-150.0,0.00050481,7]
[357139248,1743784253001,-150.0,0.00050483,7]
[357139249,1743784253016,-150.0,0.00050483,7]
[357139250,1743784253029,-150.0,0.00050485,7]
[357139251,1743784253041,-500.0,0.00050733,120]
[357139252,1743784253057,-500.0,0.00050733,120]
[357139253,1743784253071,-500.0,0.00050733,120]
[357139254,1743784253083,-67902.14390793,0.00051,120]
[357139255,1743784253137,-150.0,0.00050262,7]
[357139256,1743784253149,-1013.47924996,0.00051,120]
[357139257,1743784253204,-150.0,0.00050396,7]
[357139258,1743784253217,-150.0,0.00050438,7]
[357139259,1743784253229,-150.0,0.00050441,7]
[357139260,1743784253241,-166503.83448805,0.00051,120]
[357139261,1743784253253,-82299.24639801,0.00051,120]
[357139262,1743784253272,-917700.75360199,0.00051,120]
[357139263,1743784253285,-151.0,0.00051,120]
[357139264,1743784253298,-151.0,0.00051,120]
[357139265,1743784253311,-151.0,0.00051,120]
[357139266,1743784253323,-151.0,0.00051,120]
[357139267,1743784253336,-151.0,0.00051,120]
[357139268,1743784253348,-151.0,0.00051,120]
[357139269,1743784253366,-151.0,0.00051,120]
[357139270,1743784253379,-151.0,0.00051,120]
[357139271,1743784253392,-151.0,0.00051,120]
[357139272,1743784253404,-151.0,0.00051,120]
[357139273,1743784253416,-151.0,0.00051,120]
[357139274,1743784253429,-151.0,0.00051,120]
[357139275,1743784253442,-151.0,0.00051,120]
[357139276,1743784253454,-151.0,0.00051,120]
[357139277,1743784253467,-442.166639,0.00051,120]
[357139278,1743784253479,-442.166639,0.00051,120]
[357139279,1743784253488,-442.166639,0.00051,120]
[357139280,1743784253497,-442.166639,0.00051,120]
[357139281,1743784253507,-152.549113,0.00051,120]
[357139282,1743784253516,-151.0,0.00051,120]
[357139283,1743784253526,-152.969313,0.00051,120]
[357139284,1743784253535,-151.0,0.00051,120]
[357139285,1743784253544,-151.0,0.00051,120]
[357139286,1743784253553,-151.0,0.00051,120]
[357139287,1743784253562,-151.0,0.00051,120]
[357139288,1743784253571,-151.0,0.00051,120]
[357139289,1743784253581,-151.0,0.00051,120]
[357139290,1743784253590,-151.0,0.00051,120]
[357139291,1743784253599,-151.0,0.00051,120]
[357139292,1743784253612,-207.522527,0.00051,120]
[357139293,1743784253621,-210.045943,0.00051,120]
[357139294,1743784253631,-1242.29097,0.00051,120]
[357139295,1743784253641,-1242.29097,0.00051,120]
[357139296,1743784253650,-1242.29097,0.00051,120]
[357139297,1743784253660,-1242.29097,0.00051,120]
[357139298,1743784253670,-227.317871,0.00051,120]
[357139299,1743784253679,-227.317871,0.00051,120]
[357139300,1743784253689,-227.317871,0.00051,120]
[357139301,1743784253700,-227.317871,0.00051,120]
[357139302,1743784253710,-151.0,0.00051,120]
[357139303,1743784253720,-151.0,0.00051,120]
[357139304,1743784253730,-861.13597,0.00051,120]
[357139305,1743784253740,-861.13597,0.00051,120]
[357139306,1743784253962,-861.13597,0.00051,120]
[357139307,1743784253984,-861.13597,0.00051,120]
[357139308,1743784253995,-151.0,0.00051,120]
[357139309,1743784254006,-151.0,0.00051,120]
[357139310,1743784254015,-500.0,0.00051007,120]
[357139311,1743784254025,-622.91,0.00051007,120]
[357139312,1743784254034,-1447.85,0.00051007,120]
[357139313,1743784254043,-500.0,0.00051007,120]
[357139314,1743784254053,-500.0,0.00051007,120]
[357139315,1743784254062,-500.0,0.00051007,120]
[357139316,1743784254072,-500.0,0.00051007,120]
[357139317,1743784254082,-500.0,0.00051007,120]
[357139318,1743784254092,-500.0,0.00051007,120]
[357139319,1743784254105,-500.0,0.00051007,120]
[357139320,1743784254115,-500.0,0.00051007,30]
[357139321,1743784254125,-500.0,0.00051007,120]
[357139322,1743784254134,-500.0,0.00051007,120]
[357139323,1743784254144,-500.0,0.00051007,120]
[357139324,1743784254154,-500.0,0.00051007,120]
[357139325,1743784254163,-645.66,0.00051007,120]
[357139326,1743784254173,-500.0,0.00051007,120]
[357139327,1743784254182,-500.0,0.00051007,120]
[357139328,1743784254194,-639.3,0.00051007,120]
[357139329,1743784254204,-500.0,0.00051007,12]
[357139330,1743784254213,-500.0,0.00051007,120]
[357139331,1743784254223,-1034.44,0.00051007,10]
[357139332,1743784254233,-500.0,0.00051007,120]
[357139333,1743784254243,-500.0,0.00051007,30]
[357139334,1743784254254,-500.0,0.00051007,120]
[357139335,1743784254266,-2000.0,0.00051007,2]
[357139336,1743784254277,-500.0,0.00051007,120]
[357139337,1743784254287,-500.0,0.00051007,30]
[357139338,1743784254297,-500.0,0.00051007,120]
[357139339,1743784254308,-500.0,0.00051007,120]
[357139340,1743784254318,-500.0,0.00051007,120]
[357139341,1743784254328,-200.75845683,0.00051007,120]
[357139342,1743784254337,-500.0,0.00051007,120]
[357139343,1743784254347,-776.04,0.00051007,120]
[357139344,1743784254360,-500.0,0.00051007,120]
[357139345,1743784254370,-500.0,0.00051007,7]
[357139346,1743784254379,-2563.11,0.00051007,2]
[357139347,1743784254389,-500.0,0.00051007,120]
[357139348,1743784254399,-500.0,0.00051007,120]
[357139349,1743784254409,-821.9,0.00051007,120]
[357139350,1743784254419,-215.69180743,0.00051007,120]
[357139351,1743784254429,-500.0,0.00051007,120]
[357139352,1743784254439,-500.0,0.00051007,120]
[357139353,1743784254449,-508.26,0.00051007,120]
[357139354,1743784254459,-542.04,0.00051007,120]
[357139355,1743784254469,-500.0,0.00051007,120]
[357139356,1743784254478,-500.0,0.00051007,120]
[357139357,1743784254487,-500.0,0.00051007,120]
[357139358,1743784254497,-500.0,0.00051007,120]
[357139359,1743784254506,-500.0,0.00051007,120]
[357139360,1743784254516,-653.56,0.00051007,120]
[357139361,1743784254526,-500.0,0.00051007,120]
[357139362,1743784254536,-570.54,0.00051007,120]
[357139363,1743784254545,-208.66123594,0.00051007,120]
[357139364,1743784254555,-500.0,0.00051007,120]
[357139365,1743784254573,-500.0,0.00051007,120]
[357139366,1743784254585,-500.0,0.00051007,120]
[357139367,1743784254595,-500.0,0.00051007,120]
[357139368,1743784254606,-500.0,0.00051007,120]
[357139369,1743784254617,-500.0,0.00051007,120]
[357139370,1743784254628,-500.0,0.00051007,2]
[357139371,1743784254639,-500.0,0.00051007,120]
[357139372,1743784254650,-500.0,0.00051007,120]
[357139373,1743784254662,-391.5353458,0.00051007,120]
[357139374,1743784254672,-500.0,0.00051007,120]
[357139375,1743784254682,-932.29,0.00051007,120]
[357139376,1743784254692,-500.0,0.00051007,120]
[357139377,1743784254702,-500.0,0.00051007,120]
[357139378,1743784254712,-973.28,0.00051007,120]
[357139379,1743784254722,-500.0,0.00051007,16]
[357139380,1743784254733,-500.0,0.00051007,120]
[357139381,1743784254743,-492.17182908,0.00051007,120]
[357139382,1743784254753,-500.0,0.00051007,120]
[357139383,1743784254763,-500.0,0.00051007,120]
[357139384,1743784254773,-222.44652137,0.00051025,15]
[357139385,1743784254783,-500.0,0.00051027,120]
[357139386,1743784254793,-500.0,0.00051027,120]
[357139387,1743784254802,-1000.0,0.0005103,20]
[357139388,1743784254813,-515.24617184,0.00051065,15]
[357139389,1743784254822,-584.34180813,0.00051095,2]
[357139390,1743784254832,-266.99154556,0.00051095,120]
[357139391,1743784254842,-500.0,0.00051095,120]
[357139392,1743784254852,-152.29444619,0.0005115,28]
[357139393,1743784254864,-154.09630242,0.0005115,43]
[357139394,1743784254874,-515.24617184,0.0005115,15]
[357139395,1743784254884,-222.44652137,0.0005115,15]
[357139396,1743784254893,-350.0,0.00051156,12]
[357139397,1743784254903,-500.0,0.00051165,60]
[357139398,1743784254913,-1000.0,0.00051167,20]
[357139399,1743784254924,-201.78836015,0.00051181,120]
[357139400,1743784254935,-1571.03517536,0.00051199,16]
[357139401,1743784254945,-693.29,0.00051231,120]
[357139402,1743784254955,-500.0,0.00051231,120]
[357139403,1743784254967,-615.46045509,0.00051231,120]
[357139404,1743784254976,-500.0,0.00051231,120]
[357139405,1743784254986,-500.0,0.00051231,120]
[357139406,1743784254996,-500.0,0.00051231,7]
[357139407,1743784255007,-500.0,0.00051231,120]
[357139408,1743784255018,-500.0,0.00051231,120]
[357139409,1743784255028,-654.5,0.00051231,120]
[357139410,1743784255038,-500.0,0.00051231,120]
[357139411,1743784255047,-178.07226051,0.00051231,120]
[357139412,1743784255057,-934.65,0.00051231,120]
[357139413,1743784255067,-2359.71,0.00051231,7]
[357139414,1743784255076,-500.0,0.00051231,120]
[357139415,1743784255086,-1118.39,0.00051231,120]
[357139416,1743784255097,-593.91642581,0.00051231,120]
[357139417,1743784255107,-500.0,0.00051231,120]
[357139418,1743784255117,-1318.54,0.00051231,120]
[357139419,1743784255126,-1219.9,0.00051231,120]
[357139420,1743784255135,-4812.53,0.00051231,120]
[357139421,1743784255145,-500.0,0.00051231,120]
[357139422,1743784255154,-2532.09,0.00051231,120]
[357139423,1743784255164,-359.65024224,0.00051231,120]
[357139424,1743784255173,-500.0,0.00051231,120]
[357139425,1743784255185,-500.0,0.00051231,120]
[357139426,1743784255196,-684.54,0.00051231,120]
[357139427,1743784255205,-500.0,0.00051232,120]
[357139428,1743784255215,-1875.29,0.00051232,120]
[357139429,1743784255227,-1956.54,0.00051232,120]
[357139430,1743784255236,-825.72,0.00051232,120]
[357139431,1743784255247,-500.0,0.00051232,120]
[357139432,1743784255257,-524.14,0.00051232,120]
[357139433,1743784255268,-908.92,0.00051232,120]
[357139434,1743784255278,-273.41974942,0.00051232,2]
[357139435,1743784255288,-754.52,0.00051232,120]
[357139436,1743784255297,-500.0,0.00051232,120]
[357139437,1743784255306,-500.0,0.00051232,120]
[357139438,1743784255316,-500.0,0.00051232,120]
[357139439,1743784255325,-500.0,0.00051232,2]
[357139440,1743784255334,-553.61,0.00051232,120]
[357139441,1743784255344,-500.0,0.00051232,100]
[357139442,1743784255356,-500.0,0.00051232,2]
[357139443,1743784255365,-405.13405367,0.00051239,2]
[357139444,1743784255375,-156.587,0.00051239,2]
[357139445,1743784255384,-871.31740514,0.00051242,2]
[357139446,1743784255393,-508845.8838321,0.0005125,120]
[357139447,1743784255408,-39019.118592,0.0005125,120]
[357139448,1743784255930,-184.11755892,0.00049315,120]
[357139452,1743784934936,156.41,0.00013699,2]
[357139453,1743785026159,167.0,0.00035873,30]
[357139454,1743785131095,-155.48,0.00021917,2]
[357139455,1743785131117,-350.0,0.00023056,12]
[357139456,1743785131138,-49.01847839,0.00023287,2]
[357139457,1743785140078,-277.545,0.00022821,2]
[357139458,1743785140101,-106.46152161,0.00023287,2]
[357139459,1743785140122,-155.48,0.00024657,2]
[357139460,1743785140143,-8.00931481,0.00026027,2]
[357139461,1743785247082,-147.47068519,0.00026027,2]
[357139462,1743785247103,-196.56,0.00026849,2]
[357139463,1743785247124,-155.48,0.00027397,2]
[357139464,1743785247145,-150.0,0.0002874,2]
[357139465,1743785247169,-155.48,0.00028767,2]
[357139466,1743785247190,-155.48,0.00030136,2]
[357139467,1743785247210,-155.48,0.00031506,2]
[357139468,1743785247232,-196.56,0.00032646,2]
[357139469,1743785247254,-207.11691072,0.00032776,2]
[357139470,1743785247274,-155.48,0.00032876,2]
[357139471,1743785247295,-975.29306103,0.00032876,2]
[357139472,1743785250114,-24.69693897,0.00032876,2]
[357139473,1743785250135,-155.48,0.00034246,2]
[357139474,1743785250157,-150.0,0.00034548,10]
[357139475,1743785250181,-155.48,0.00035616,2]
[357139476,1743785250202,-155.48,0.00036986,2]
[357139477,1743785250223,-155.48,0.00038356,2]
[357139478,1743785250244,-196.56,0.00038443,2]
[357139479,1743785250265,-155.48,0.00039726,2]
[357139480,1743785250286,-150.0,0.00041,120]
[357139481,1743785250309,-155.48,0.00041095,120]
[357139482,1743785250331,-288.0376774,0.0004201,2]
[357139483,1743785250352,-155.48,0.00042465,120]
[357139484,1743785250379,-154.02,0.000436,36]
[357139485,1743785250406,-154.02,0.000436,36]
[357139486,1743785250429,-155.48,0.00043835,120]
[357139487,1743785250451,-1000.0,0.00043835,120]
[357139488,1743785250473,-298.36780249,0.00043863,120]
[357139489,1743785250495,-300.0,0.00044,4]
[357139490,1743785250518,-550.0,0.00044024,5]
[357139491,1743785250546,-150.1,0.00044081,2]
[357139492,1743785250569,-196.56,0.00044239,2]
[357139493,1743785250592,-200.0,0.00044291,2]
[357139494,1743785250616,-165.474061,0.00044377,2]
[357139495,1743785250638,-151.0,0.00045,120]
[357139496,1743785250660,-155.48,0.00045205,120]
[357139497,1743785250687,-5555.0,0.000453,5]
[357139498,1743785250710,-468.16121703,0.000453,60]
[357139499,1743785251121,-543.37728999,0.000453,60]
[357139500,1743785350104,-465.1265024,0.00032876,3]
[357139501,1743785356154,-34.8734976,0.00032876,3]
[357139502,1743785366086,-596.3522656,0.000453,60]
[357139503,1743785371085,-2259.89029,0.000453,60]
[357139512,1743785432190,-512.046062,0.000453,60]
[357139513,1743785432292,-1172.17287538,0.000453,60]
[357139514,1743785432302,-150.0,0.000453,60]
[357139515,1743785432312,-300.837193,0.00045375,2]
[357139516,1743785432321,-933.24,0.00045474,2]
[357139517,1743785432330,-624.56809184,0.000457,120]
[357139518,1743785432339,-150.0,0.000458,120]
[357139519,1743785432349,-150.0,0.00046,30]
[357139520,1743785432358,-273.21421063,0.000464,30]
[357139521,1743785432368,-154.02,0.000464,39]
[357139522,1743785432377,-154.02,0.000464,39]
[357139523,1743785432387,-154.02,0.000464,39]
[357139524,1743785432396,-154.02,0.000464,39]
[357139525,1743785432406,-155.48,0.00046575,120]
[357139526,1743785432416,-624.56809182,0.00046875,120]
[357139527,1743785432425,-150.1,0.00046877,2]
[357139528,1743785432435,-539.0,0.000473,30]
[357139529,1743785432444,-384.03869435,0.000473,2]
[357139530,1743785432465,-244.55286967,0.000473,2]
[357139531,1743785432475,-1073.11,0.00047358,2]
[357139532,1743785432484,-150.05,0.00047459,2]
[357139533,1743785432494,-188.08,0.00047476,2]
[357139534,1743785432503,-168.05,0.00047533,2]
[357139535,1743785432512,-150.05,0.00047577,2]
[357139536,1743785432521,-150.05,0.00047696,2]
[357139537,1743785432530,-195.46,0.00047734,5]
[357139538,1743785432539,-933.24,0.00047738,2]
[357139540,1743785432550,-155.48,0.00047945,120]
[357139542,1743785432560,-155.74,0.00047948,120]
[357139543,1743785432569,-1043.65,0.00048003,2]
[357139544,1743785432583,-624.56809182,0.0004805,120]
[357139545,1743785432592,-450.09,0.00048152,2]
[357139546,1743785432602,-604.69,0.00048184,2]
[357139547,1743785432611,-156.32,0.00048184,2]
[357139548,1743785432623,-1000.0,0.00048225,2]
[357139549,1743785432633,-150.0,0.00048385,2]
[357139550,1743785432642,-1760.0,0.0004839,2]
[357139551,1743785432652,-169.34,0.000484,120]
[357139552,1743785432663,-5552.0,0.000485,60]
[357139553,1743785432674,-250.0,0.00048571,120]
[357139554,1743785432684,-150.0,0.00048597,7]
[357139555,1743785432694,-240.16894412,0.00048644,7]
[357139556,1743785432703,-150.0,0.00048729,7]
[357139557,1743785432714,-150.0,0.00048779,7]
[357139558,1743785432724,-150.0,0.00048797,7]
[357139559,1743785432733,-150.0,0.0004884,7]
[357139560,1743785432743,-150.0,0.00048873,7]
[357139561,1743785432753,-1883.3281031,0.0004889,15]
[357139562,1743785432763,-150.0,0.0004894,7]
[357139563,1743785432773,-150.0,0.00048943,7]
[357139564,1743785432783,-150.0,0.00048959,7]
[357139565,1743785432793,-592.29137335,0.00048973,10]
[357139566,1743785432804,-501.47327578,0.00048973,10]
[357139567,1743785432813,-294.87421659,0.0004898,2]
[357139568,1743785432823,-84913.35122755,0.0004899,4]
[357139572,1743785438074,-504.11565132,0.000458,2]
[357139573,1743785438170,-60.83287088,0.000458,2]
[357139574,1743785438183,-126.0514778,0.000458,2]
[357139575,1743785438192,-203.37291683,0.00048889,120]
[357139576,1743785438202,-297.44291041,0.00048889,120]
[357139577,1743785438213,-202.55708959,0.00048889,120]
[357139578,1743785438222,-500.0,0.00048889,120]
[357139579,1743785438231,-261.32929787,0.00048889,120]
[357139580,1743785438241,-278.1325962,0.00048889,120]
[357139581,1743785438250,-500.0,0.00048889,120]
[357139582,1743785438259,-500.0,0.00048889,120]
[357139583,1743785438268,-500.0,0.00048889,120]
[357139584,1743785438277,-500.0,0.00048889,120]
[357139585,1743785438287,-239023.30316645,0.0004899,4]
[357139586,1743785438296,-39094.0697792,0.0004899,4]
[357139587,1743785438307,-150.55,0.0004899,120]
[357139588,1743785438317,-150.55,0.0004899,120]
[357139589,1743785438326,-150.55,0.0004899,120]
[357139590,1743785438335,-150.55,0.0004899,120]
[357139591,1743785438345,-150.55,0.0004899,120]
[357139592,1743785438354,-150.55,0.0004899,120]
[357139593,1743785438363,-150.55,0.0004899,120]
[357139594,1743785438373,-1486758.0,0.00049,90]
[357139595,1743785438383,-1883.32810302,0.00049013,15]
[357139596,1743785438392,-150.0,0.00049036,7]
[357139597,1743785438402,-354.67,0.00049083,2]
[357139599,1743785438412,-150.0,0.00049092,7]
[357139601,1743785438421,-150.0,0.00049099,7]
[357139604,1743785438571,-150.0,0.00049102,7]
[357139605,1743785438586,-150.0,0.00049112,7]
[357139606,1743785438596,-1883.32810302,0.00049137,15]
[357139607,1743785438605,-150.0,0.00049187,7]
[357139608,1743785438615,-200.0,0.000492,2]
[357139609,1743785438627,-588.824,0.000492,86]
[357139610,1743785438637,-154.02,0.000492,45]
[357139611,1743785438647,-154.02,0.000492,45]
[357139612,1743785438659,-154.02,0.000492,45]
[357139613,1743785438669,-154.02,0.000492,45]
[357139614,1743785438679,-891.2849,0.00049215,2]
[357139615,1743785438688,-12192.8756,0.00049215,2]
[357139616,1743785438698,-4427.3001,0.00049215,2]
[357139617,1743785438708,-624.56809182,0.00049224,120]
[357139618,1743785438718,-1883.32810302,0.0004926,15]
[357139619,1743785438727,-150.55,0.0004929,120]
[357139620,1743785438739,-75815.29877641,0.000493,120]
[357139621,1743785438749,-543.777,0.000493,120]
[357139622,1743785438758,-543.778,0.000493,120]
[357139623,1743785438768,-543.777,0.000493,120]
[357139624,1743785438778,-543.778,0.000493,120]
[357139625,1743785438788,-543.777,0.000493,120]
[357139626,1743785438797,-150.93835,0.00049315,120]
[357139627,1743785438807,-187.207994,0.00049315,120]
[357139628,1743785438817,-151.270673,0.00049315,120]
[357139629,1743785438826,-178.343282,0.00049315,120]
[357139630,1743785438836,-500.0,0.00049315,120]
[357139631,1743785438845,-503.63064348,0.00049315,120]
[357139632,1743785438855,-510.56256341,0.00049315,120]
[357139633,1743785438865,-500.0,0.00049315,120]
[357139634,1743785438874,-569.11131556,0.00049315,60]
[357139635,1743785438883,-500.0,0.00049315,120]
[357139636,1743785438893,-334.90377611,0.00049315,120]
[357139637,1743785438902,-771.85,0.00049315,120]
[357139638,1743785438912,-500.0,0.00049315,120]
[357139639,1743785438921,-500.0,0.00049315,120]
[357139640,1743785438931,-500.0,0.00049315,120]
[357139641,1743785438940,-514.17310003,0.00049315,120]
[357139642,1743785438950,-500.0,0.00049315,120]
[357139643,1743785438959,-500.0,0.00049315,120]
[357139644,1743785438969,-591.64430669,0.00049315,120]
[357139645,1743785438979,-500.0,0.00049315,120]
[357139646,1743785438988,-500.0,0.00049315,120]
[357139647,1743785438998,-571.60036249,0.00049315,120]
[357139648,1743785439008,-500.0,0.00049315,120]
[357139649,1743785439017,-500.0,0.00049315,120]
[357139650,1743785439027,-752.65,0.00049315,120]
[357139651,1743785439037,-500.0,0.00049315,120]
[357139652,1743785439047,-500.0,0.00049315,120]
[357139653,1743785439057,-500.0,0.00049315,120]
[357139654,1743785439067,-500.0,0.00049315,120]
[357139655,1743785439078,-500.0,0.00049315,120]
[357139656,1743785439088,-500.0,0.00049315,120]
[357139657,1743785439097,-500.0,0.00049315,120]
[357139658,1743785439107,-500.0,0.00049315,120]
[357139659,1743785439117,-500.0,0.00049315,120]
[357139660,1743785439126,-1792.4,0.00049315,10]
[357139661,1743785439135,-301.5294748,0.00049315,120]
[357139662,1743785439144,-370.76122789,0.00049315,120]
[357139663,1743785439155,-500.0,0.00049315,120]
[357139664,1743785439166,-155.48,0.00049315,120]
[357139665,1743785439175,-500.0,0.00049315,120]
[357139666,1743785439185,-609.54692479,0.00049315,120]
[357139667,1743785439195,-500.0,0.00049315,7]
[357139668,1743785439205,-500.0,0.00049315,120]
[357139669,1743785439215,-500.0,0.00049315,120]
[357139670,1743785439225,-500.0,0.00049315,30]
[357139671,1743785439234,-932.29,0.00049315,120]
[357139672,1743785439243,-500.0,0.00049315,120]
[357139673,1743785439253,-500.0,0.00049315,120]
[357139674,1743785439262,-973.28,0.00049315,120]
[357139675,1743785439271,-500.0,0.00049315,120]
[357139676,1743785439281,-2000.0,0.00049315,2]
[357139677,1743785439290,-500.0,0.00049315,120]
[357139678,1743785439299,-235.83748568,0.00049315,120]
[357139679,1743785439310,-997.14,0.00049315,120]
[357139680,1743785439319,-500.0,0.00049315,120]
[357139681,1743785439329,-2999.97,0.00049315,2]
[357139682,1743785439338,-500.0,0.00049315,2]
[357139683,1743785439347,-318.03088674,0.00049315,120]
[357139684,1743785439357,-500.0,0.00049315,120]
[357139685,1743785439366,-500.0,0.00049315,120]
[357139686,1743785439376,-500.0,0.00049315,120]
[357139687,1743785439386,-500.0,0.00049315,120]
[357139688,1743785439395,-907.09,0.00049315,120]
[357139689,1743785439405,-500.0,0.00049315,120]
[357139690,1743785439415,-500.0,0.00049315,7]
[357139691,1743785439425,-392.1711106,0.00049315,120]
[357139692,1743785439435,-538.49,0.00049315,120]
[357139693,1743785439445,-500.0,0.00049315,120]
[357139694,1743785439454,-500.0,0.00049315,120]
[357139695,1743785439464,-495.0,0.00049315,60]
[357139696,1743785439474,-500.0,0.00049315,120]
[357139697,1743785439483,-857.64,0.00049315,120]
[357139698,1743785439492,-500.0,0.00049315,120]
[357139699,1743785439502,-503.81,0.00049315,120]